bitfinex/quotes_ETHUSD_20220109
["timestamp","ask_amount","ask_price","bid_price","bid_amount"]
[1641697366123,1.0,3136.6,3135.8,1.20040697]
[1641697366322,0.7976,3136.4,3135.8,1.20040697]
[1641697366521,0.458,3136.4,3135.8,1.20040697]
[1641697366720,0.00170527,3136.3,3135.8,1.20040697]
[1641697366922,0.00170527,3136.3,3136.0,0.60903169]
[1641697367222,0.00113685,3136.2,3136.0,0.60903169]
[1641697367619,0.05516485,3136.2,3136.0,0.60903169]
[1641697367820,0.79745,3136.1,3136.0,0.60903169]
[1641697368020,0.79745,3136.1,3135.8,1.20040697]
[1641697368222,0.85261485,3136.1,3135.8,1.20040697]
[1641697368822,1.65012485,3136.1,3135.8,1.20040697]
[1641697369225,2.65012485,3136.1,3135.8,1.20040697]
[1641697369476,0.458,3136.0,3135.8,1.20040697]
[1641697369873,2.00516485,3135.9,3135.8,1.20040697]
[1641697370072,2.80285485,3135.9,3135.8,1.20040697]
[1641697370272,1.85285485,3135.9,3135.8,1.20154382]
[1641697370475,0.85285485,3135.9,3135.8,1.20154382]
[1641697371773,1.85285485,3135.9,3135.8,1.20154382]
[1641697372173,0.85285485,3135.9,3135.8,1.20154382]
[1641697373236,1.85285485,3135.9,3135.8,1.20154382]
[1641697374534,1.85285485,3135.9,3135.0,0.27059983]
[1641697374933,0.05516485,3135.8,3135.1,0.00397896]
[1641697375533,0.458,3135.7,3135.1,0.00397896]
[1641697375730,0.458,3135.7,3135.0,0.00454738]
[1641697375731,4.00665505,3135.7,3135.0,0.00454738]
[1641697375931,0.05516485,3135.6,3135.0,0.00454738]
[1641697376131,1.34613418,3135.6,3134.7,0.00625265]
[1641697376532,0.05516485,3135.5,3134.7,0.65850078]
[1641697376733,0.05516485,3135.5,3134.7,2.23267168]
[1641697376975,0.05516485,3135.5,3134.8,0.00568423]
[1641697378276,0.05516485,3135.5,3135.1,0.60899457]
[1641697378680,0.05516485,3135.5,3135.2,0.00341054]
[1641697379076,0.05516485,3135.5,3134.8,0.00568423]
[1641697380278,0.05516485,3135.5,3135.0,0.63349767]
[1641697380721,0.05516485,3135.5,3134.8,0.00568423]
[1641697382025,0.05516485,3135.5,3134.8,0.61332865]
[1641697382226,0.05516485,3135.5,3134.8,0.60764442]
[1641697382424,0.05516485,3135.5,3134.9,0.00511581]
[1641697383026,0.05516485,3135.5,3134.8,1.79563754]
[1641697383227,0.05516485,3135.5,3134.8,0.00568423]
[1641697383426,0.05516485,3135.5,3134.9,0.00511581]
[1641697383627,0.05516485,3135.5,3134.8,0.00568423]
[1641697383827,0.05516485,3135.5,3134.9,0.66421871]
[1641697384372,0.05516485,3135.5,3135.0,0.00454738]
[1641697385574,0.05516485,3135.5,3134.8,0.30568423]
[1641697385774,0.79742,3135.9,3134.9,2.21019889]
[1641697385974,0.00170527,3136.3,3134.9,2.5153147]
[1641697386174,0.00170527,3136.3,3135.4,0.69428292]
[1641697386375,0.0022737,3136.2,3135.5,2.19731088]
[1641697386678,0.458,3136.4,3135.6,0.00113684]
[1641697386679,0.00170527,3136.1,3135.6,0.00113684]
[1641697386875,2.39439997,3136.1,3135.6,0.00113684]
[1641697387076,0.75913685,3136.0,3135.4,0.00227369]
[1641697387279,0.81416115,3136.0,3135.3,0.00284211]
[1641697387574,0.81416115,3136.0,3135.0,5.2861709]
[1641697387575,2.19731088,3135.1,3135.0,1.5741709]
[1641697387776,0.79791,3134.9,3134.4,5.00320178]
[1641697387977,0.79791,3134.9,3134.4,1.6538909]
[1641697388245,0.8529343,3134.9,3134.5,2.19731088]
[1641697388540,0.0550243,3134.9,3134.6,0.00397897]
[1641697388738,0.0550243,3134.9,3134.4,1.5741709]
[1641697388739,0.8530143,3134.9,3134.4,1.5741709]
[1641697388940,1.25587,3134.8,3134.4,1.5741709]
[1641697389141,2.25700685,3134.8,3134.1,2.19731088]
[1641697389342,0.79793,3134.5,3134.1,2.19731088]
[1641697389540,0.79793,3134.5,3134.2,0.00227369]
[1641697389740,0.8529543,3134.5,3134.2,0.00227369]
[1641697390243,2.4488697,3134.5,3134.2,0.00227369]
[1641697390442,2.8165697,3134.5,3134.2,0.00227369]
[1641697390643,0.79805,3134.3,3134.1,0.00284211]
[1641697391041,0.0550243,3134.2,3134.0,0.00341054]
[1641697391447,2.449277,3134.2,3134.0,0.00341054]
[1641697391874,0.0550243,3134.1,3134.0,0.00341054]
[1641697392274,0.0550243,3134.1,3133.6,0.9440375]
[1641697392275,0.8531143,3134.1,3133.6,0.9440375]
[1641697392478,0.7981447,3134.0,3133.7,0.00170527]
[1641697392675,0.853169,3134.0,3133.7,0.00170527]
[1641697393380,1.59629,3133.9,3133.7,0.00170527]
[1641697393577,1.0550243,3134.0,3133.8,3.2]
[1641697393780,1.0550243,3134.0,3133.7,0.00170527]
[1641697393976,0.0550243,3134.0,3133.7,0.00170527]
[1641697394180,1.0550243,3134.0,3133.7,0.00170527]
[1641697394377,1.59629,3133.9,3133.7,0.00170527]
[1641697395379,2.75919,3133.9,3133.7,0.00170527]
[1641697395827,1.0,3133.8,3133.7,0.00170527]
[1641697396027,2.75919,3133.9,3133.7,0.00170527]
[1641697396427,1.0,3133.8,3133.7,0.00170527]
[1641697397228,1.0,3133.8,3133.6,0.89574277]
[1641697398930,0.0550243,3133.7,3133.6,0.89574277]
[1641697399230,0.8532543,3133.7,3133.6,0.89574277]
[1641697399479,2.95,3133.6,3132.9,1.5741709]
[1641697399675,2.39526,3133.4,3132.7,1.5741709]
[1641697399875,1.25642,3133.3,3133.0,0.00397896]
[1641697400074,1.8083443,3133.3,3132.7,1.5741709]
[1641697400279,4.85,3133.0,3132.1,5.33432042]
[1641697400478,1.0013908,3132.6,3132.1,5.28432042]
[1641697400676,1.0013908,3132.6,3131.5,1.26865]
[1641697400677,2.85374,3132.5,3132.2,1.58583961]
[1641697400875,2.85374,3132.5,3131.5,1.26865]
[1641697400876,2.9087643,3132.5,3131.5,1.26865]
[1641697401074,0.00113685,3132.4,3131.5,1.26865]
[1641697401277,0.458,3132.3,3131.6,0.00341054]
[1641697401479,0.458,3132.3,3131.5,0.00346054]
[1641697401480,0.7987,3132.0,3131.5,0.00346054]
[1641697401876,0.95156527,3131.9,3131.5,0.00346054]
[1641697402275,0.00113685,3131.8,3131.5,0.00346054]
[1641697402476,0.79864,3131.7,3131.5,0.00346054]
[1641697403325,0.79864,3131.7,3131.6,0.58685541]
[1641697403624,11.84173951,3132.6,3131.7,4.55]
[1641697403625,4.2631243,3132.6,3131.7,4.55]
[1641697403824,4.2631243,3132.6,3131.6,0.00113685]
[1641697404025,0.00113684,3132.0,3131.6,0.00113685]
[1641697404524,0.79849,3131.9,3131.6,0.00113685]
[1641697404924,0.79849,3131.9,3131.7,0.68304607]
[1641697405124,0.00113684,3132.0,3131.7,0.68304607]
[1641697405725,0.00113684,3132.0,3131.7,1.48141607]
[1641697405924,0.00113684,3132.0,3131.7,1.78141607]
[1641697406124,0.00113684,3132.0,3131.7,2.08141607]
[1641697406325,0.00113684,3132.0,3131.9,6.00084364]
[1641697407378,0.00113684,3132.0,3131.7,1.48141607]
[1641697407578,0.00113684,3132.0,3131.7,0.68304607]
[1641697407778,0.00113684,3132.0,3131.6,0.00113685]
[1641697408580,0.7985,3131.9,3131.7,1.09426577]
[1641697408781,0.7985,3131.9,3131.8,3.84378008]
[1641697409582,0.7985,3131.9,3131.8,0.54378008]
[1641697409880,0.05490159,3132.1,3131.9,2.55]
[1641697410924,0.79845,3132.0,3131.9,2.55]
[1641697411724,0.458,3132.7,3132.0,2.75]
[1641697412124,0.05603843,3132.6,3132.1,0.00170527]
[1641697412325,0.51403843,3132.6,3132.1,0.00170527]
[1641697412524,1.59689,3132.3,3132.1,0.00170527]
[1641697412925,0.05465643,3132.2,3132.1,0.00170527]
[1641697413826,0.3220232,3134.8,3133.0,2.08841179]
[1641697414028,37.37784262,3136.4,3132.3,1.9801395]
[1641697414029,0.05465643,3132.7,3132.3,1.9801395]
[1641697414226,0.47875855,3133.3,3132.3,1.9801395]
[1641697414227,0.00170527,3132.9,3132.3,1.9801395]
[1641697414477,0.00170527,3132.9,3132.4,0.00113684]
[1641697414777,0.7983,3132.6,3132.4,0.00113684]
[1641697415980,0.7983,3132.6,3132.2,0.00227369]
[1641697416579,0.7983,3132.6,3132.5,0.5833185]
[1641697416785,0.7983,3132.6,3132.2,0.00227369]
[1641697416980,0.7983,3132.6,3132.2,1.78147853]
[1641697417481,0.7983,3132.6,3132.3,0.00170527]
[1641697417880,0.7983,3132.6,3132.5,0.61264585]
[1641697418133,0.79825,3132.8,3132.5,0.61264585]
[1641697418325,0.73825,3132.8,3132.5,0.61264585]
[1641697418529,0.73938685,3132.8,3132.3,0.00170527]
[1641697419924,0.73938685,3132.8,3132.4,0.55059211]
[1641697420927,0.73938685,3132.8,3132.5,1.78753513]
[1641697421229,0.73938685,3132.8,3132.5,1.80686894]
[1641697421626,0.73938685,3132.8,3132.4,0.55059211]
[1641697421874,0.8336313,3132.9,3132.5,3.25]
[1641697422075,0.8336313,3132.9,3132.5,3.25170527]
[1641697422273,0.8336313,3132.9,3132.6,0.00113685]
[1641697422674,0.05453454,3132.8,3132.6,0.00113685]
[1641697422876,0.85278454,3132.8,3132.5,0.00170527]
[1641697423374,0.05453454,3132.7,3132.5,0.00170527]
[1641697423778,2.63471454,3132.7,3132.5,0.00170527]
[1641697424178,0.30590539,3133.1,3132.1,0.00397896]
[1641697424381,0.30590539,3133.1,3131.8,5.79377223]
[1641697424382,0.05466846,3132.6,3131.9,0.00511581]
[1641697424778,0.79847,3132.3,3131.9,0.00511581]
[1641697424978,0.7341,3132.7,3132.0,2.1]
[1641697425380,0.7341,3132.7,3132.1,0.00511581]
[1641697425628,1.59693,3132.4,3132.1,0.00511581]
[1641697425821,1.59693,3132.4,3131.6,1.2215]
[1641697426022,1.59693,3132.4,3131.6,1.1715]
[1641697426224,1.59693,3132.4,3131.7,0.0022737]
[1641697426823,0.79862,3132.1,3131.7,0.0022737]
[1641697428626,0.79862,3132.1,3131.8,1.58577634]
[1641697429029,0.79862,3132.1,3131.9,0.00113685]
[1641697429480,0.79862,3132.1,3131.9,3.35062464]
[1641697429679,0.79862,3132.1,3132.0,5.86045682]
[1641697429880,0.79836,3132.3,3132.1,0.6557779]
[1641697430085,0.79836,3132.3,3132.2,4.73611022]
[1641697430382,0.79949684,3132.3,3132.2,4.67004792]
[1641697430781,0.00113684,3132.3,3132.2,4.67004792]
[1641697431587,0.00113684,3132.3,3132.2,2.9]
[1641697431982,0.00113684,3132.3,3132.2,4.6981761]
[1641697432784,0.79947684,3132.3,3132.2,5.84444066]
[1641697433525,0.00113684,3132.3,3132.2,5.84444066]
[1641697433923,0.79829,3132.5,3132.3,4.1]
[1641697434124,0.79829,3132.5,3132.4,0.68387405]
[1641697434322,0.79829,3132.5,3132.0,1.94727834]
[1641697434522,0.79487948,3132.5,3131.9,0.00113685]
[1641697434730,0.79487948,3132.5,3132.1,0.00113685]
[1641697434924,0.79487948,3132.5,3131.9,0.00227369]
[1641697435323,0.79487948,3132.5,3132.4,1.59143233]
[1641697435925,0.79487948,3132.5,3132.4,3.74427881]
[1641697436125,0.79487948,3132.5,3132.4,1.59143233]
[1641697436732,0.79487948,3132.5,3132.3,2.95112648]
[1641697436973,0.79487948,3132.5,3132.4,4.59084898]
[1641697437769,0.79487948,3132.5,3132.3,2.15284648]
[1641697437970,0.79487948,3132.5,3132.2,0.67880666]
[1641697438972,0.79487948,3132.5,3132.4,3.89953975]
[1641697439376,0.79487948,3132.5,3132.4,2.6]
[1641697440374,0.79487948,3132.5,3132.2,0.67880666]
[1641697440662,1.59681,3133.0,3132.3,2.85]
[1641697440849,1.59681,3133.0,3132.0,1.2138]
[1641697441047,0.00341054,3132.9,3132.0,1.2138]
[1641697441248,0.00341054,3132.9,3132.1,0.00113684]
[1641697441249,0.79844,3132.3,3132.1,0.00113684]
[1641697441647,0.79844,3132.3,3132.1,0.65162606]
[1641697441847,0.79844,3132.3,3132.1,0.65048922]
[1641697442648,0.79844,3132.3,3132.2,2.4]
[1641697443249,3.99844,3132.3,3132.2,2.4]
[1641697443549,3.99844,3132.3,3132.1,0.65048922]
[1641697443949,3.99844,3132.3,3132.2,1.75456325]
[1641697444150,3.99844,3132.3,3132.2,4.15291747]
[1641697444371,3.99844,3132.3,3132.2,1.80291747]
[1641697445574,3.99844,3132.3,3132.2,3.95291747]
[1641697445974,3.99844,3132.3,3132.2,1.80291747]
[1641697446376,0.00284212,3132.8,3132.3,4.4649]
[1641697446575,0.00284212,3132.8,3132.5,18.68]
[1641697446774,0.79809,3134.0,3133.1,0.7980625]
[1641697446973,3.99125,3134.0,3133.9,0.56214034]
[1641697447176,1.60636163,3134.1,3133.3,1.1622]
[1641697447373,1.60636163,3134.1,3132.8,1.596125]
[1641697447374,1.60636163,3134.1,3132.9,1.88800897]
[1641697447574,0.0096632,3134.0,3132.9,1.88800897]
[1641697447774,0.86227679,3134.0,3132.9,1.88800897]
[1641697447976,0.00909478,3133.9,3132.9,1.88800897]
[1641697448237,0.06351967,3133.9,3132.9,1.88800897]
[1641697448438,0.06295125,3133.8,3132.9,1.88800897]
[1641697448838,0.79824,3133.4,3133.1,0.64796537]
[1641697449039,0.79824,3133.3,3132.8,1.134]
[1641697449241,0.80392424,3133.3,3132.6,1.88384978]
[1641697449440,0.00511581,3133.2,3132.4,3.1972]
[1641697449640,0.0595407,3133.2,3132.4,1.7399063]
[1641697449843,0.00454739,3133.1,3132.4,1.7399063]
[1641697450041,0.7983,3132.8,3132.4,1.7399063]
[1641697450240,0.7983,3132.8,3132.3,3.21586354]
[1641697450440,0.0022737,3132.7,3132.3,3.21586354]
[1641697450642,1.5990637,3132.7,3132.3,3.21586354]
[1641697450941,0.00170527,3132.6,3132.3,3.21586354]
[1641697451441,0.00113685,3132.5,3132.3,2.69844]
[1641697452376,0.00113685,3132.5,3132.4,0.66404284]
[1641697452573,1.59794685,3132.5,3132.4,0.66404284]
[1641697452774,1.59794685,3132.5,3132.4,2.39717417]
[1641697453074,0.00113685,3132.5,3132.4,2.39717417]
[1641697453473,0.00113685,3132.5,3132.4,5.34717417]
[1641697454678,0.00113685,3132.5,3132.4,5.45736617]
[1641697455632,0.7959763,3132.5,3132.4,5.45736617]
[1641697456024,1.5965,3132.9,3132.5,5.2]
[1641697456226,2.39472,3133.6,3132.6,3.28365265]
[1641697456424,2.39472,3133.6,3132.6,2.48556265]
[1641697456724,0.79809,3133.2,3132.6,2.48556265]
[1641697457125,0.79809,3133.2,3132.7,1.33322005]
[1641697457325,0.79809,3133.2,3132.9,0.7981136]
[1641697457528,0.79809,3133.2,3133.0,2.66502439]
[1641697457726,0.79809,3133.2,3133.1,1.73705813]
[1641697457926,0.79809,3133.2,3133.1,3.27439514]
[1641697458125,0.80206896,3133.2,3133.1,3.27439514]
[1641697458527,1.1994,3134.0,3133.1,3.27439514]
[1641697458528,1.0,3134.3,3134.1,8.15367911]
[1641697458729,5.39043238,3135.1,3134.8,2.96242243]
[1641697458730,2.19731088,3135.1,3134.8,2.96242243]
[1641697458927,3.7078,3136.6,3135.1,6.19537607]
[1641697459127,0.79748,3136.0,3135.1,6.19537607]
[1641697459390,0.79748,3136.0,3135.8,0.59484994]
[1641697459690,0.79748,3136.0,3135.8,1.40074994]
[1641697460093,6.16,3136.1,3135.8,1.40074994]
[1641697460094,0.05442489,3135.9,3135.8,1.40074994]
[1641697460292,0.05442489,3135.9,3135.8,7.99818994]
[1641697460490,6.32538987,3137.3,3135.8,7.20074994]
[1641697460491,0.01591586,3136.0,3135.8,7.20074994]
[1641697460692,0.01591586,3136.0,3135.8,6.90074994]
[1641697460892,0.01534744,3135.9,3135.8,7.69809994]
[1641697461091,0.01534744,3135.9,3135.8,2.19809994]
[1641697461291,0.01534744,3135.9,3135.8,5.40074994]
[1641697461492,0.01534744,3135.9,3135.1,5.15497607]
[1641697461797,0.01290829,3137.0,3135.2,1.57596268]
[1641697461798,0.01477901,3135.8,3135.2,1.57596268]
[1641697461992,0.06920541,3135.8,3135.2,1.57596268]
[1641697462193,0.06863699,3135.7,3135.2,1.57596268]
[1641697462595,0.86576857,3135.6,3135.2,1.57596268]
[1641697462791,0.86576857,3135.6,3135.4,0.53558906]
[1641697462992,0.01307374,3135.5,3135.4,0.53558906]
[1641697463431,0.01307374,3135.5,3135.2,2.1556829]
[1641697463830,0.01250532,3135.4,3135.1,0.99537607]
[1641697464231,0.0119369,3135.3,3135.1,0.99537607]
[1641697464631,0.01136847,3135.2,3135.1,0.99537607]
[1641697464832,0.01136847,3135.2,3135.1,1.58469296]
[1641697465736,0.01136847,3135.2,3135.1,0.99537607]
[1641697465935,0.06579487,3135.2,3135.1,0.99537607]
[1641697469184,4.66579487,3135.2,3135.1,0.99537607]
[1641697469382,5.63989487,3135.2,3135.1,0.99537607]
[1641697469584,6.63989487,3135.2,3135.1,0.99537607]
[1641697469983,6.63989487,3135.2,3134.8,0.63188737]
[1641697469984,0.79802,3135.0,3134.8,0.63188737]
[1641697470389,0.06408494,3134.9,3134.8,0.63188737]
[1641697470840,0.0096632,3134.9,3134.8,0.63188737]
[1641697471940,0.05442174,3135.3,3135.2,0.54713192]
[1641697472441,0.05442174,3135.3,3134.8,2.45716759]
[1641697472639,0.85212174,3135.3,3134.8,0.63188737]
[1641697472839,0.00170527,3135.2,3134.8,0.63188737]
[1641697473239,0.85212174,3135.3,3134.8,0.63188737]
[1641697473240,0.00113685,3135.1,3134.8,0.63188737]
[1641697473643,0.00113685,3135.1,3134.9,0.5425339]
[1641697474582,0.81795747,3135.5,3134.9,0.5425339]
[1641697474778,1.0,3135.7,3134.9,0.5425339]
[1641697474979,0.00170527,3135.4,3134.9,2.31243989]
[1641697475180,0.79940527,3135.4,3134.9,2.31243989]
[1641697475380,0.00113685,3135.3,3134.9,2.31243989]
[1641697475585,0.00113685,3135.3,3134.9,0.5425339]
[1641697475780,0.00113685,3135.3,3134.9,2.34440882]
[1641697476182,0.00113685,3135.3,3134.9,2.64440882]
[1641697476386,0.00113685,3135.3,3134.9,2.34440882]
[1641697476982,0.00113685,3135.3,3134.9,0.5425339]
[1641697477280,0.00113685,3135.3,3134.9,3.92569956]
[1641697477681,0.00113685,3135.3,3134.9,1.59515]
[1641697478331,0.00113685,3135.3,3134.8,0.63188737]
[1641697478725,0.00113685,3135.3,3134.9,0.00113685]
[1641697479326,0.00113685,3135.3,3134.9,1.75726551]
[1641697479529,0.00113685,3135.3,3134.9,1.82135281]
[1641697479727,0.00113685,3135.3,3134.9,0.00113685]
[1641697481895,0.00113685,3135.3,3134.9,1.75377609]
[1641697482981,0.00113685,3135.3,3134.9,0.00113685]
[1641697483185,0.00113685,3135.3,3134.9,1.76141093]
[1641697483381,0.00113685,3135.3,3135.1,0.56835529]
[1641697483681,0.79768,3135.4,3135.3,2.7522737]
[1641697483882,1.5952,3135.9,3135.3,4.61290903]
[1641697484083,0.83286547,3136.1,3135.7,0.69609428]
[1641697484283,0.00397896,3136.0,3135.7,0.69609428]
[1641697484682,0.00341054,3135.9,3135.7,0.69609428]
[1641697485083,0.00284211,3135.8,3135.7,5.8948531]
[1641697485384,0.00284211,3135.8,3135.7,2.0448531]
[1641697486231,0.00284211,3135.8,3135.7,3.92969907]
[1641697486634,0.00284211,3135.8,3135.7,4.52969907]
[1641697486834,0.00284211,3135.8,3135.7,2.6448531]
[1641697487038,0.00284211,3135.8,3135.4,1.57596268]
[1641697487334,1.58939578,3136.1,3135.5,2.25]
[1641697487534,1.58939578,3136.1,3135.5,0.00170527]
[1641697487734,0.79861685,3136.0,3135.6,0.00113684]
[1641697487934,0.79861685,3136.0,3135.5,2.1490922]
[1641697487935,0.79861685,3136.0,3135.7,0.54081083]
[1641697488635,0.00113685,3136.0,3135.7,0.54081083]
[1641697489034,0.00113685,3136.0,3135.8,1.87642612]
[1641697489684,0.00113685,3136.0,3135.8,1.57596268]
[1641697489885,0.79865685,3136.0,3135.8,1.57596268]
[1641697490386,0.00113685,3136.0,3135.8,1.57596268]
[1641697490585,0.00113685,3136.0,3135.9,4.30554196]
[1641697490988,0.00113685,3136.0,3135.9,2.37815341]
[1641697491188,0.00113685,3136.0,3135.9,2.43061344]
[1641697491386,0.00113685,3136.0,3135.9,2.14857413]
[1641697491587,0.00113685,3136.0,3135.9,4.03972882]
[1641697492387,0.00113685,3136.0,3135.9,4.05114085]
[1641697492588,0.00113685,3136.0,3135.9,3.89892251]
[1641697492988,0.00113685,3136.0,3135.9,2.32295983]
[1641697493925,0.7951663,3136.1,3136.0,2.2]
[1641697494127,0.7951663,3136.1,3136.0,1.85790347]
[1641697495535,0.7951663,3136.1,3136.0,1.76135836]
[1641697495730,0.7951663,3136.1,3136.0,1.7885537]
[1641697496332,0.7951663,3136.1,3136.0,3.36451638]
[1641697498380,0.7951663,3136.1,3136.0,1.57596268]
[1641697498583,0.7951663,3136.1,3135.6,0.00113684]
[1641697498982,0.7951663,3136.1,3135.6,0.00227369]
[1641697499184,0.7951663,3136.1,3135.8,1.54959889]
[1641697500835,0.7951663,3136.1,3135.9,1.54959889]
[1641697501443,0.7951663,3136.1,3136.0,1.54959889]
[1641697502839,0.67329956,3136.4,3136.0,1.54959889]
[1641697503041,0.05430025,3136.3,3136.0,1.54959889]
[1641697503340,0.00113685,3136.2,3136.0,1.54959889]
[1641697503540,0.79755,3136.1,3136.0,1.54959889]
[1641697503739,0.79755,3136.1,3135.8,1.54959889]
[1641697504774,0.79755,3136.1,3136.0,1.54959889]
[1641697505174,0.79755,3136.1,3135.9,1.54959889]
[1641697506676,0.79755,3136.1,3136.0,1.7706406]
[1641697507075,0.79755,3136.1,3136.0,3.32023949]
[1641697507276,0.79755,3136.1,3136.0,1.54959889]
[1641697507675,0.79755,3136.1,3135.6,0.00227369]
[1641697508125,0.79755,3136.1,3135.4,0.00341054]
[1641697508326,0.79755,3136.1,3135.4,0.80090464]
[1641697508525,0.79755,3136.1,3135.9,1.55821019]
[1641697509130,0.79755,3136.1,3135.8,1.55821019]
[1641697509326,0.79755,3136.1,3135.9,1.74382738]
[1641697509726,0.79755,3136.1,3135.9,2.97136887]
[1641697509927,0.00113685,3136.2,3135.9,2.97136887]
[1641697509928,0.00113685,3136.2,3136.0,6.45868958]
[1641697510127,0.00113685,3136.2,3136.1,7.42747145]
[1641697510331,0.00113685,3136.2,3136.1,7.72747145]
[1641697510528,0.00113685,3136.2,3136.1,9.02747145]
[1641697510729,0.00113685,3136.2,3136.1,10.12585332]
[1641697510929,0.83258006,3137.3,3136.1,10.12585332]
[1641697510930,0.83258006,3137.3,3136.6,0.66209759]
[1641697511131,1.62979006,3137.3,3136.7,2.08777651]
[1641697511331,0.00568423,3137.2,3136.7,2.08777651]
[1641697511733,0.00511581,3137.1,3136.7,2.08777651]
[1641697512280,3.5995,3137.7,3136.7,2.08777651]
[1641697512281,0.00454739,3137.0,3136.7,2.08777651]
[1641697512680,0.00397896,3136.9,3136.7,2.88494651]
[1641697512880,0.80114896,3136.9,3136.8,1.94488925]
[1641697513079,0.79717,3136.9,3136.8,1.94488925]
[1641697514081,1.5944,3137.2,3136.8,1.94488925]
[1641697514082,0.79714,3137.1,3136.8,1.94488925]
[1641697514284,0.59714,3137.1,3136.9,0.79714]
[1641697514482,0.60225581,3137.1,3137.0,1.97248601]
[1641697515288,1.36427491,3137.7,3136.7,2.00643018]
[1641697515484,1.36427491,3137.7,3136.6,2.51554146]
[1641697515734,0.458,3137.6,3136.8,0.00170527]
[1641697515935,1.59434,3137.3,3136.7,0.00227369]
[1641697516234,1.59434,3137.3,3136.4,1.55344387]
[1641697516235,1.59434,3137.3,3136.5,1.73794318]
[1641697516639,1.59434,3137.3,3136.6,0.00284212]
[1641697517036,1.59434,3137.3,3136.5,1.78126975]
[1641697517235,1.59434,3137.3,3136.6,0.00284212]
[1641697517637,1.59434,3137.3,3136.4,0.00397896]
[1641697518036,1.59434,3137.3,3136.4,0.53710091]
[1641697518236,1.59434,3137.3,3136.5,1.94105252]
[1641697518437,1.59434,3137.3,3136.5,1.94446306]
[1641697518639,1.59434,3137.3,3136.6,0.00284212]
[1641697518939,1.59434,3137.3,3136.4,0.00397896]
[1641697522185,1.5733311,3137.3,3136.4,0.00397896]
[1641697522585,0.458,3137.2,3136.4,0.00397896]
[1641697522784,0.79751,3137.1,3136.3,0.00454739]
[1641697522984,0.79751,3137.1,3136.2,1.55855968]
[1641697522985,0.458,3137.0,3136.2,1.55855968]
[1641697523238,5.2,3136.9,3136.2,1.49399126]
[1641697523436,2.05318,3136.8,3135.4,2.9453147]
[1641697523635,5.8450114,3136.8,3135.4,1.1805]
[1641697523834,0.74324078,3135.6,3135.5,0.00454739]
[1641697524038,1.54082078,3135.6,3135.5,0.00454739]
[1641697524439,1.54082078,3135.6,3135.4,0.00511581]
[1641697525437,1.54082078,3135.6,3135.4,0.80258581]
[1641697525638,0.0022737,3136.7,3135.5,5.2]
[1641697526037,0.00170527,3136.6,3135.6,0.00397896]
[1641697526239,0.00170527,3136.6,3135.6,0.30397896]
[1641697526440,0.458,3136.8,3135.6,0.30397896]
[1641697526441,0.00113685,3136.5,3135.6,0.30397896]
[1641697526638,0.79742,3136.4,3135.8,0.79743]
[1641697526885,0.79742,3136.4,3135.7,0.80080414]
[1641697527080,0.79742,3136.4,3135.9,0.00227369]
[1641697527285,0.79742,3136.4,3135.8,0.00284212]
[1641697527481,0.79742,3136.4,3136.3,0.6090943]
[1641697527682,0.79725,3136.6,3136.3,4.0090943]
[1641697527883,0.79725,3136.6,3136.3,5.4063143]
[1641697528082,0.00113685,3136.5,3136.3,5.4063143]
[1641697528282,0.00113685,3136.5,3136.3,4.8063143]
[1641697528481,0.00113685,3136.5,3136.3,4.6090943]
[1641697529181,0.00113685,3136.5,3136.3,5.4063543]
[1641697529382,0.00113685,3136.5,3136.3,1.09726]
[1641697529581,0.00113685,3136.5,3136.3,0.3]
[1641697529785,0.79843685,3136.5,3136.2,0.3]
[1641697530183,0.79843685,3136.5,3136.1,1.5944259]
[1641697530384,0.79843685,3136.5,3135.8,1.59745112]
[1641697530385,0.79843685,3136.5,3135.8,0.00284212]
[1641697531238,0.79843685,3136.5,3135.7,0.00341054]
[1641697532041,1.59590685,3136.5,3135.4,0.80260911]
[1641697532241,0.79745,3136.4,3135.4,0.00511581]
[1641697532443,0.79745,3136.4,3135.9,1.57218429]
[1641697532841,0.79745,3136.4,3136.0,0.00170527]
[1641697533040,0.79745,3136.4,3136.2,1.57218429]
[1641697533839,0.79745,3136.4,3136.0,0.00170527]
[1641697534041,4.79495,3136.4,3136.0,0.00170527]
[1641697534682,6.3900467,3136.4,3136.0,1.57388956]
[1641697535184,6.3900467,3136.4,3136.1,0.00113685]
[1641697535782,6.3900467,3136.4,3136.0,0.00170527]
[1641697536184,6.44433297,3136.4,3136.0,0.00170527]
[1641697536882,6.44433297,3136.4,3135.9,0.00227369]
[1641697538732,6.44433297,3136.4,3135.9,1.57445798]
[1641697538932,4.84923627,3136.4,3135.9,1.57445798]
[1641697539133,4.84923627,3136.4,3136.0,0.00170527]
[1641697539734,4.84923627,3136.4,3135.9,0.00227369]
[1641697540540,5.64678627,3136.4,3135.9,0.00227369]
[1641697540837,8.03961657,3136.4,3135.9,0.00227369]
[1641697541238,8.03961657,3136.4,3135.8,0.00284212]
[1641697541438,1.0,3136.3,3135.8,0.00284212]
[1641697541638,7.24197677,3136.4,3135.8,0.00284212]
[1641697542582,7.46117677,3136.4,3135.8,0.00284212]
[1641697542783,5.2,3136.2,3135.7,0.21634056]
[1641697542988,5.2,3136.2,3134.8,0.63188737]
[1641697542989,6.46809139,3136.1,3134.8,0.63188737]
[1641697543184,0.7977,3136.0,3134.8,0.63188737]
[1641697543384,0.458,3135.9,3134.9,4.00263023]
[1641697543586,5.2,3135.8,3134.1,5.43939848]
[1641697543784,0.458,3135.7,3134.1,5.43939848]
[1641697543983,2.04193366,3135.7,3134.5,0.00227369]
[1641697544183,1.85175731,3135.4,3134.5,0.00227369]
[1641697544485,0.51455997,3135.3,3134.5,0.00227369]
[1641697544683,5.2,3135.2,3132.9,9.6956]
[1641697544884,5.2,3135.2,3132.9,10.49368]
[1641697544885,0.458,3135.1,3132.9,10.49368]
[1641697545084,0.2977,3134.9,3133.0,2.98762878]
[1641697545287,1.5961817,3134.5,3133.0,9.86862878]
[1641697545490,0.79809,3134.2,3133.0,8.160871]
[1641697545732,1.59619,3134.5,3133.3,0.53081878]
[1641697545932,8.0283,3134.7,3133.1,0.30795793]
[1641697546133,0.05428627,3134.5,3133.4,0.80420266]
[1641697546334,0.05428627,3134.5,3133.2,0.00738951]
[1641697546533,0.05428627,3134.5,3133.5,0.00568424]
[1641697546734,0.05428627,3134.5,3133.2,0.00738951]
[1641697546934,0.05428627,3134.5,3133.3,0.57440141]
[1641697547134,0.05428627,3134.5,3133.3,0.87440141]
[1641697547434,0.05428627,3134.5,3133.4,0.00625266]
[1641697547834,0.05428627,3134.5,3133.4,0.80417796]
[1641697547835,0.79795,3134.2,3133.4,0.80417796]
[1641697548234,0.79795,3134.2,3133.5,0.00568424]
[1641697548638,0.79795,3134.2,3133.5,1.10360424]
[1641697548835,0.79795,3134.2,3133.6,0.3]